fUSD/lending_fUSD_20250916
["ID","MTS","AMOUNT","RATE_DAILY","PERIOD"]
[385860571,1758065441150,-500.0,0.00020896,7]
[385860573,1758065441160,-200.44271713,0.00020896,7]
[385860575,1758065441169,-500.0,0.00020896,7]
[385860577,1758065441179,-364.40383034,0.00020896,7]
[385860579,1758065441188,-500.0,0.00020896,7]
[385860581,1758065441197,-500.0,0.00020896,7]
[385860583,1758065441207,-257.65989875,0.00020896,7]
[385860585,1758065441217,-500.0,0.00020896,7]
[385860587,1758065441226,-500.0,0.00020896,7]
[385860589,1758065441236,-500.0,0.00020896,7]
[385860591,1758065441246,-500.0,0.00020896,7]
[385860593,1758065441256,-500.0,0.00020896,7]
[385860595,1758065441266,-500.0,0.00020897,2]
[385860597,1758065441277,-497.0,0.00020902,2]
[385860599,1758065441288,-916.0,0.00020902,2]
[385860601,1758065441297,-500.0,0.00020902,2]
[385860603,1758065441307,-3415.0,0.00020902,2]
[385860605,1758065441316,-500.0,0.00020902,2]
[385860608,1758065441326,-915.0,0.00020902,2]
[385860610,1758065441335,-500.0,0.00020902,2]
[385860612,1758065441345,-500.0,0.00020902,2]
[385860614,1758065441354,-165.51,0.00020962,2]
[385860616,1758065441363,-1500.0,0.00020968,2]
[385860618,1758065441373,-1500.0,0.00020968,2]
[385860620,1758065441382,-1197.01263459,0.00020968,2]
[385860622,1758065441392,-1587.01186752,0.00020968,2]
[385860624,1758065441401,-1500.0,0.00020968,2]
[385860626,1758065441410,-191.04025314,0.00020994,2]
[385860628,1758065441420,-500.0,0.00020994,2]
[385860630,1758065441429,-500.0,0.00020994,2]
[385860631,1758065441438,-500.0,0.00020994,2]
[385860633,1758065441448,-500.0,0.00020994,2]
[385860636,1758065441457,-205.1876,0.00020994,2]
[385860638,1758065441467,-154.85634431,0.00020997,2]
[385860640,1758065441476,-20000.0,0.00021,2]
[385860642,1758065441485,-67455.80490417,0.00021,2]
[385860644,1758065441495,-19963.45846623,0.00021,2]
[385860646,1758065441504,-1173.25326384,0.00021,2]
[385860648,1758065441513,-193.65581751,0.00021,2]
[385860650,1758065441522,-150.0,0.00021062,7]
[385860652,1758065441533,-1500.0,0.00021068,2]
[385860654,1758065441542,-1574.06377888,0.00021068,2]
[385860655,1758065441554,-1500.0,0.00021068,2]
[385860657,1758065441563,-505.27582995,0.00021068,2]
[385860660,1758065441575,-1379.93939177,0.00021068,2]
[385860662,1758065441584,-1522.76397311,0.00021068,2]
[385860664,1758065441595,-1500.0,0.00021068,2]
[385860666,1758065441604,-502.32530016,0.00021068,2]
[385860668,1758065441619,-1500.0,0.00021068,2]
[385860670,1758065441632,-1507.01441022,0.00021068,2]
[385860672,1758065441643,-722.90160042,0.00021068,2]
[385860674,1758065441652,-430.75237213,0.00021068,2]
[385860676,1758065441661,-1500.0,0.00021068,2]
[385860677,1758065441670,-1500.0,0.00021068,2]
[385860678,1758065441680,-1500.0,0.00021068,2]
[385860679,1758065441689,-515.95536276,0.0002107,7]
[385860680,1758065441699,-500.0,0.00021096,2]
[385860681,1758065441708,-417.0,0.000211,2]
[385860682,1758065441717,-179.2725,0.00021143,2]
[385860683,1758065441726,-150.0,0.00021165,2]
[385860684,1758065441736,-500.0,0.00021165,2]
[385860685,1758065441746,-500.0,0.00021165,2]
[385860686,1758065441756,-500.0,0.0002117,7]
[385860687,1758065441765,-500.0,0.0002117,7]
[385860688,1758065441774,-500.0,0.0002117,7]
[385860689,1758065441784,-500.0,0.0002117,7]
[385860690,1758065441794,-500.0,0.0002117,7]
[385860691,1758065441803,-500.0,0.0002117,7]
[385860692,1758065441813,-500.0,0.0002117,7]
[385860693,1758065441823,-500.0,0.0002117,7]
[385860694,1758065441833,-500.0,0.0002117,7]
[385860695,1758065441843,-431.6993903,0.00021171,2]
[385860696,1758065441852,-497.0,0.00021176,2]
[385860697,1758065441862,-916.0,0.00021176,2]
[385860698,1758065441872,-500.0,0.00021176,2]
[385860699,1758065441881,-3415.0,0.00021176,2]
[385860700,1758065441891,-500.0,0.00021176,2]
[385860701,1758065442047,-915.0,0.00021176,2]
[385860702,1758065442058,-500.0,0.00021176,2]
[385860703,1758065442068,-500.0,0.00021176,2]
[385860704,1758065442078,-153.66,0.00021261,2]
[385860705,1758065442087,-500.0,0.00021268,2]
[385860706,1758065442096,-500.0,0.00021268,2]
[385860707,1758065442106,-500.0,0.00021268,2]
[385860708,1758065442115,-500.0,0.00021268,2]
[385860709,1758065442124,-501.50044325,0.00021278,2]
[385860710,1758065442133,-250.0,0.00021286,2]
[385860711,1758065442143,-300.0,0.00021286,2]
[385860712,1758065442152,-300.0,0.00021286,2]
[385860713,1758065442162,-195.0,0.00021286,2]
[385860714,1758065442171,-162.63,0.00021294,2]
[385860715,1758065442181,-300.0,0.00021301,2]
[385860716,1758065442190,-2000.0,0.00021301,3]
[385860718,1758065442199,-195.0,0.00021301,2]
[385860719,1758065442209,-300.0,0.00021301,2]
[385860720,1758065442217,-500.0,0.00021315,2]
[385860721,1758065442226,-250.0,0.00021342,2]
[385860722,1758065442236,-2000.0,0.00021342,3]
[385860723,1758065442245,-2000.0,0.00021342,3]
[385860724,1758065442255,-300.0,0.00021342,2]
[385860725,1758065442264,-500.0,0.0002137,2]
[385860726,1758065442273,-297.0,0.00021404,2]
[385860727,1758065442282,-420.0,0.00021404,2]
[385860728,1758065442291,-200.0,0.00021426,2]
[385860729,1758065442301,-200.0,0.00021426,2]
[385860730,1758065442310,-163.13,0.00021427,2]
[385860731,1758065442319,-150.0,0.00021439,2]
[385860732,1758065442328,-500.0,0.00021439,2]
[385860733,1758065442338,-500.0,0.00021444,7]
[385860734,1758065442347,-500.0,0.00021444,7]
[385860735,1758065442356,-500.0,0.00021444,7]
[385860736,1758065442365,-500.0,0.00021444,7]
[385860737,1758065442375,-500.0,0.00021444,7]
[385860738,1758065442384,-421.26486068,0.00021444,7]
[385860739,1758065442394,-500.0,0.00021444,7]
[385860740,1758065442403,-500.0,0.00021444,7]
[385860741,1758065442412,-500.0,0.00021444,7]
[385860742,1758065442422,-497.0,0.0002145,2]
[385860743,1758065442431,-916.0,0.0002145,2]
[385860744,1758065442440,-500.0,0.0002145,2]
[385860745,1758065442449,-3415.0,0.0002145,2]
[385860746,1758065442458,-500.0,0.0002145,2]
[385860747,1758065442467,-915.0,0.0002145,2]
[385860748,1758065442476,-500.0,0.0002145,2]
[385860749,1758065442487,-500.0,0.0002145,2]
[385860750,1758065442496,-1680.0,0.00021453,2]
[385860751,1758065442505,-572.0,0.00021456,2]
[385860752,1758065442515,-159.81763887,0.00021477,2]
[385860753,1758065442524,-504.38442263,0.00021477,2]
[385860754,1758065442534,-218.35450897,0.000215,2]
[385860755,1758065442544,-2000.0,0.00021516,2]
[385860756,1758065442553,-2000.0,0.00021516,2]
[385860757,1758065442562,-2000.0,0.00021516,2]
[385860758,1758065442572,-300.0,0.00021526,2]
[385860759,1758065442581,-500.0,0.00021529,2]
[385860760,1758065442590,-500.0,0.00021542,2]
[385860761,1758065442599,-500.0,0.00021542,2]
[385860762,1758065442608,-500.0,0.00021542,2]
[385860763,1758065442618,-500.0,0.00021542,2]
[385860764,1758065442627,-1832.73,0.00021605,2]
[385860765,1758065442637,-600.0,0.0002161,2]
[385860766,1758065442646,-297.22,0.0002161,2]
[385860767,1758065442658,-2000.0,0.00021616,2]
[385860768,1758065442667,-1012.31622026,0.00021616,2]
[385860769,1758065442677,-2000.0,0.00021616,2]
[385860770,1758065442686,-2000.0,0.00021616,2]
[385860771,1758065442695,-2000.0,0.00021616,2]
[385860772,1758065442704,-508.78166724,0.00021616,2]
[385860773,1758065442714,-2000.0,0.00021616,2]
[385860774,1758065442723,-500.0,0.00021644,2]
[385860775,1758065442732,-213.1401216,0.0002167,3]
[385860776,1758065442742,-160.0,0.0002167,3]
[385860777,1758065442751,-515.95536276,0.000217,3]
[385860779,1758065442761,-150.0,0.00021713,2]
[385860781,1758065442771,-500.0,0.00021713,2]
[385860782,1758065442780,-218.39609816,0.00021713,2]
[385860783,1758065442789,-500.0,0.00021718,7]
[385860784,1758065442799,-500.0,0.00021718,7]
[385860786,1758065442809,-500.0,0.00021718,7]
[385860787,1758065442820,-500.0,0.00021718,7]
[385860788,1758065442830,-500.0,0.00021718,7]
[385860789,1758065442839,-500.0,0.00021718,7]
[385860790,1758065442862,-500.0,0.00021718,7]
[385860791,1758065442878,-500.0,0.00021718,7]
[385860792,1758065442898,-497.0,0.00021724,2]
[385860793,1758065442930,-916.0,0.00021724,2]
[385860794,1758065442954,-500.0,0.00021724,2]
[385860795,1758065442978,-3415.0,0.00021724,2]
[385860796,1758065442999,-500.0,0.00021724,2]
[385860797,1758065443021,-915.0,0.00021724,2]
[385860798,1758065443043,-500.0,0.00021724,2]
[385860799,1758065443068,-500.0,0.00021724,2]
[385860800,1758065443084,-228.58182782,0.0002176,2]
[385860801,1758065443103,-165.51,0.00021761,2]
[385860802,1758065443117,-396.3509109,0.00021816,2]
[385860803,1758065443136,-500.0,0.00021816,2]
[385860804,1758065443150,-500.0,0.00021816,2]
[385860805,1758065443166,-500.0,0.00021816,2]
[385860806,1758065443183,-5000.0,0.00021918,2]
[385860807,1758065443201,-500.0,0.00021918,2]
[385860808,1758065443218,-500.0,0.00021918,2]
[385860809,1758065443241,-522.3975936,0.00021918,2]
[385860810,1758065443257,-150.0,0.00021918,7]
[385860811,1758065443273,-150.0,0.00021918,2]
[385860812,1758065443289,-5569.36168375,0.00021926,2]
[385860813,1758065443304,-500.0,0.0002195,2]
[385860815,1758065443319,-200.0,0.00021974,2]
[385860818,1758065443334,-200.0,0.00021974,2]
[385860820,1758065443349,-150.0,0.00021987,2]
[385860823,1758065443366,-500.0,0.00021987,2]
[385860825,1758065443381,-405.61472348,0.00021992,7]
[385860828,1758065443396,-500.0,0.00021992,7]
[385860829,1758065443412,-500.0,0.00021992,7]
[385860830,1758065443426,-500.0,0.00021992,7]
[385860831,1758065443441,-500.0,0.00021992,7]
[385860832,1758065443456,-500.0,0.00021992,7]
[385860834,1758065443472,-500.0,0.00021992,7]
[385860836,1758065443487,-500.0,0.00021992,7]
[385860837,1758065443502,-497.0,0.00021998,2]
[385860838,1758065443517,-916.0,0.00021998,2]
[385860839,1758065443533,-500.0,0.00021998,2]
[385860840,1758065443547,-3415.0,0.00021998,2]
[385860841,1758065443563,-500.0,0.00021998,2]
[385860842,1758065443578,-915.0,0.00021998,2]
[385860843,1758065443595,-500.0,0.00021998,2]
[385860844,1758065443610,-500.0,0.00021998,2]
[385860845,1758065443625,-150.0,0.00022,2]
[385860846,1758065443642,-150.0,0.00022,2]
[385860847,1758065443659,-37311.16,0.00022,7]
[385860848,1758065443675,-160.0,0.00022,7]
[385860849,1758065443689,-4076.85477,0.00022,2]
[385860850,1758065443705,-160.97,0.00022,2]
[385860851,1758065443720,-150.0,0.00022,2]
[385860852,1758065443736,-4000.0,0.00022,4]
[385860853,1758065443752,-518.30025097,0.00022064,2]
[385860854,1758065443768,-1179.75346321,0.00022064,2]
[385860855,1758065443786,-2500.0,0.00022064,2]
[385860856,1758065443802,-500.0,0.0002209,2]
[385860857,1758065443818,-500.0,0.0002209,2]
[385860858,1758065443834,-500.0,0.0002209,2]
[385860859,1758065443849,-486.1344126,0.000221,2]
[385860860,1758065443864,-600.0,0.0002211,2]
[385860861,1758065443879,-236.24263819,0.0002211,2]
[385860862,1758065443894,-1168.71541128,0.00022164,2]
[385860863,1758065443911,-2500.0,0.00022164,2]
[385860864,1758065443926,-809.93497039,0.00022164,2]
[385860865,1758065443941,-2500.0,0.00022164,2]
[385860866,1758065443956,-2452.74702036,0.00022164,2]
[385860867,1758065443971,-161.90209112,0.0002218,2]
[385860868,1758065443986,-160.74803991,0.0002219,2]
[385860869,1758065444002,-500.0,0.00022192,2]
[385860870,1758065444017,-500.0,0.00022192,2]
[385860871,1758065444032,-150.0,0.00022192,7]
[385860872,1758065444047,-150.0,0.0002225,2]
[385860873,1758065444062,-500.0,0.00022261,2]
[385860874,1758065444077,-372.28270592,0.00022266,7]
[385860875,1758065444092,-369.55315134,0.00022266,7]
[385860876,1758065444107,-500.0,0.00022266,7]
[385860877,1758065444122,-500.0,0.00022266,7]
[385860878,1758065444137,-500.0,0.00022266,7]
[385860879,1758065444152,-500.0,0.00022266,7]
[385860880,1758065444166,-500.0,0.00022266,7]
[385860881,1758065444181,-150.0,0.00022266,7]
[385860882,1758065444195,-497.0,0.00022272,2]
[385860883,1758065444212,-916.0,0.00022272,2]
[385860884,1758065444230,-500.0,0.00022272,2]
[385860885,1758065444246,-3415.0,0.00022272,2]
[385860886,1758065444260,-500.0,0.00022272,2]
[385860887,1758065444456,-915.0,0.00022272,2]
[385860888,1758065444483,-256.54863331,0.00022272,2]
[385860889,1758065444492,-500.0,0.00022272,2]
[385860890,1758065444502,-2517.53407265,0.000223,2]
[385860891,1758065444511,-500.0,0.00022364,2]
[385860892,1758065444521,-500.0,0.00022364,2]
[385860893,1758065444531,-500.0,0.00022364,2]
[385860894,1758065444540,-271.87,0.00022459,2]
[385860895,1758065444550,-500.0,0.00022466,2]
[385860896,1758065444558,-500.0,0.00022466,2]
[385860897,1758065444568,-150.0,0.00022466,7]
[385860898,1758065444577,-162.63,0.00022477,2]
[385860899,1758065444586,-1000.0,0.00022498,2]
[385860900,1758065444596,-34885.84769394,0.000225,2]
[385860901,1758065444606,-207.4,0.00022521,2]
[385860902,1758065444615,-200.0,0.00022522,2]
[385860903,1758065444624,-200.0,0.00022522,2]
[385860904,1758065444636,-500.0,0.00022535,2]
[385860905,1758065444645,-500.0,0.00022535,2]
[385860906,1758065444656,-500.0,0.0002254,7]
[385860907,1758065444665,-500.0,0.0002254,7]
[385860908,1758065444674,-332.56372272,0.0002254,7]
[385860909,1758065444683,-500.0,0.0002254,7]
[385860910,1758065444693,-500.0,0.0002254,7]
[385860911,1758065444703,-150.0,0.0002254,7]
[385860912,1758065444714,-1832.73,0.00022544,2]
[385860913,1758065444724,-497.0,0.00022546,2]
[385860914,1758065444734,-916.0,0.00022546,2]
[385860915,1758065444744,-450.0,0.00022546,2]
[385860916,1758065444753,-3415.0,0.00022546,2]
[385860917,1758065444762,-500.0,0.00022546,2]
[385860918,1758065444772,-915.0,0.00022546,2]
[385860919,1758065444781,-500.0,0.00022546,2]
[385860920,1758065444791,-5004.3404816,0.00022549,2]
[385860921,1758065444800,-165.51,0.0002256,2]
[385860922,1758065444810,-598.15,0.00022587,2]
[385860923,1758065444819,-3000.0,0.00022612,2]
[385860924,1758065444828,-500.0,0.00022638,2]
[385860925,1758065444838,-500.0,0.00022638,2]
[385860926,1758065444847,-500.0,0.00022638,2]
[385860927,1758065444857,-600.0,0.00022658,2]
[385860928,1758065444867,-598.15,0.00022708,2]
[385860929,1758065444878,-514.1689658,0.0002271,2]
[385860930,1758065444888,-3000.0,0.00022712,2]
[385860931,1758065444898,-1144.49492174,0.00022712,2]
[385860932,1758065444908,-500.0,0.0002274,2]
[385860933,1758065444917,-201.83949831,0.0002274,2]
[385860934,1758065444929,-150.0,0.0002274,7]
[385860935,1758065444940,-506.35500661,0.00022755,2]
[385860936,1758065444949,-202.37056766,0.00022755,2]
[385860937,1758065444959,-2371.2094088,0.00022762,2]
[385860938,1758065444968,-262.05753752,0.0002278,5]
[385860939,1758065444977,-250.0,0.00022798,2]
[385860940,1758065444987,-500.0,0.00022809,2]
[385860941,1758065444996,-500.0,0.00022814,7]
[385860942,1758065445005,-500.0,0.00022814,7]
[385860943,1758065445015,-500.0,0.00022814,7]
[385860944,1758065445024,-500.0,0.00022814,7]
[385860945,1758065445034,-150.0,0.00022814,7]
[385860946,1758065445043,-497.0,0.0002282,2]
[385860947,1758065445055,-916.0,0.0002282,2]
[385860948,1758065445064,-3415.0,0.0002282,2]
[385860949,1758065445075,-454.11737296,0.0002282,2]
[385860950,1758065445085,-915.0,0.0002282,2]
[385860951,1758065445096,-500.0,0.0002282,2]
[385860952,1758065445107,-500.0,0.00022912,2]
[385860953,1758065445119,-500.0,0.00022912,2]
[385860954,1758065445129,-500.0,0.00022912,2]
[385860955,1758065445139,-26173.938255,0.00022945,2]
[385860956,1758065445149,-62065.3542985,0.00022951,2]
[385860957,1758065445158,-2989.4845813,0.00022951,2]
[385860958,1758065445169,-21141.0833898,0.00022951,2]
[385860959,1758065445179,-48487.9012755,0.00022951,2]
[385860960,1758065445188,-160.0,0.00023,3]
[385860961,1758065445199,-160.0,0.00023,3]
[385860962,1758065445210,-432.26627809,0.00023,2]
[385860963,1758065445220,-500.0,0.00023014,2]
[385860964,1758065445232,-213.62819646,0.00023014,7]
[385860965,1758065445241,-1500.0,0.00023046,2]
[385860966,1758065445251,-200.0,0.0002307,2]
[385860967,1758065445261,-500.0,0.00023083,2]
[385860968,1758065445271,-500.0,0.00023088,7]
[385860969,1758065445281,-500.0,0.00023088,7]
[385860970,1758065445293,-500.0,0.00023088,7]
[385860971,1758065445303,-500.0,0.00023088,7]
[385860972,1758065445313,-150.0,0.00023088,7]
[385860973,1758065445323,-497.0,0.00023094,2]
[385860974,1758065445332,-916.0,0.00023094,2]
[385860975,1758065445342,-3415.0,0.00023094,2]
[385860976,1758065445351,-915.0,0.00023094,2]
[385860977,1758065445364,-500.0,0.00023094,2]
[385860978,1758065445374,-2541.26897259,0.000231,2]
[385860979,1758065445386,-1116.619293,0.00023118,2]
[385860980,1758065445395,-3500.0,0.0002316,2]
[385860981,1758065445406,-500.0,0.00023186,2]
[385860982,1758065445418,-401.1051913,0.00023186,2]
[385860983,1758065445429,-500.0,0.00023186,2]
[385860984,1758065445439,-2000.0,0.000232,2]
[385860985,1758065445449,-51272.18917388,0.000232,2]
[385860986,1758065445460,-600.0,0.00023206,2]
[385860987,1758065445471,-3500.0,0.0002326,2]
[385860988,1758065445482,-200.0,0.00023288,2]
[385860989,1758065445493,-462.9078684,0.00023288,2]
[385860990,1758065445504,-587.0,0.00023315,2]
[385860991,1758065445515,-176.96836635,0.00023324,2]
[385860992,1758065445524,-350.0,0.00023346,2]
[385860993,1758065445535,-500.0,0.00023357,2]
[385860994,1758065445545,-500.0,0.00023362,7]
[385860995,1758065445554,-209.93293688,0.00023362,7]
[385860996,1758065445564,-500.0,0.00023362,7]
[385860997,1758065445573,-294.08104519,0.00023362,7]
[385860998,1758065445585,-150.0,0.00023362,7]
[385860999,1758065445595,-497.0,0.00023368,2]
[385861000,1758065445604,-916.0,0.00023368,2]
[385861001,1758065445614,-3415.0,0.00023368,2]
[385861002,1758065445626,-915.0,0.00023368,2]
[385861003,1758065445636,-500.0,0.00023368,2]
[385861004,1758065445646,-55668.0,0.000234,2]
[385861005,1758065445659,-529.0883351,0.00023416,2]
[385861006,1758065445669,-500.0,0.0002346,2]
[385861007,1758065445679,-500.0,0.0002346,2]
[385861008,1758065445690,-2351.0,0.00023482,2]
[385861009,1758065445700,-37311.16,0.000235,7]
[385861010,1758065445710,-200.0,0.000235,2]
[385861011,1758065445720,-2000.0,0.00023594,2]
[385861012,1758065445729,-5840.1950345,0.00023604,2]
[385861013,1758065445738,-13848.6524442,0.00023609,2]
[385861014,1758065445748,-667.0441733,0.00023609,2]
[385861015,1758065445758,-4717.2133224,0.00023609,2]
[385861016,1758065445769,-10819.1131768,0.00023609,2]
[385861017,1758065445780,-200.0,0.00023618,2]
[385861018,1758065445790,-153.66,0.00023624,2]
[385861019,1758065445800,-218.39609816,0.00023627,2]
[385861020,1758065445810,-610.90867188,0.00023631,2]
[385861021,1758065445820,-500.0,0.00023636,7]
[385861022,1758065445830,-500.0,0.00023636,7]
[385861023,1758065445839,-150.0,0.00023636,7]
[385861024,1758065445850,-497.0,0.00023642,2]
[385861025,1758065445861,-916.0,0.00023642,2]
[385861026,1758065445870,-3415.0,0.00023642,2]
[385861027,1758065445880,-915.0,0.00023642,2]
[385861028,1758065445891,-500.0,0.00023642,2]
[385861029,1758065445904,-151.0,0.00023642,7]
[385861030,1758065445913,-162.63,0.0002366,2]
[385861031,1758065445923,-4000.0,0.00023708,2]
[385861032,1758065445932,-168.5,0.00023726,2]
[385861033,1758065445941,-500.0,0.00023734,2]
[385861034,1758065445951,-500.0,0.00023734,2]
[385861035,1758065445961,-600.0,0.00023754,2]
[385861036,1758065445972,-1425.0,0.00023772,2]
[385861037,1758065445981,-4020.00019496,0.00023808,2]
[385861038,1758065445991,-171.685,0.00023835,2]
[385861039,1758065446000,-1425.0,0.00023846,2]
[385861040,1758065446010,-450.0,0.00023894,2]
[385861041,1758065446020,-5513.0,0.000239,3]
[385861042,1758065446030,-500.0,0.00023905,2]
[385861043,1758065446039,-1425.0,0.00023907,2]
[385861044,1758065446049,-633.50831341,0.0002391,7]
[385861045,1758065446058,-500.0,0.0002391,7]
[385861046,1758065446069,-215.69447917,0.0002391,7]
[385861047,1758065446078,-497.0,0.00023916,2]
[385861048,1758065446088,-916.0,0.00023916,2]
[385861049,1758065446097,-3415.0,0.00023916,2]
[385861050,1758065446108,-915.0,0.00023916,2]
[385861051,1758065446119,-500.0,0.00023916,2]
[385861052,1758065446129,-151.0,0.00023916,7]
[385861053,1758065446140,-151.0,0.00023916,7]
[385861054,1758065446149,-151.0,0.00023916,7]
[385861055,1758065446158,-151.0,0.00023916,7]
[385861056,1758065446168,-151.0,0.00023916,7]
[385861057,1758065446177,-1425.0,0.00023924,2]
[385861058,1758065446190,-1425.0,0.00023931,2]
[385861059,1758065446201,-5569.36168375,0.00023952,2]
[385861060,1758065446212,-1425.0,0.00023954,2]
[385861061,1758065446223,-1425.0,0.00023964,2]
[385861062,1758065446233,-571.70794241,0.00023995,2]
[385861063,1758065446242,-160.0,0.00024,7]
[385861064,1758065446252,-58420.27350874,0.00024,2]
[385861065,1758065446262,-160.0,0.00024,7]
[385861066,1758065446272,-767.26265624,0.00024,2]
[385861067,1758065446281,-10304.07763151,0.00024,5]
[385861068,1758065446291,-4000.0,0.00024,4]
[385861069,1758065446301,-500.0,0.00024008,2]
[385861070,1758065446310,-500.0,0.00024008,2]
[385861071,1758065446320,-1425.0,0.00024026,2]
[385861072,1758065446329,-1425.0,0.00024034,2]
[385861073,1758065446339,-2500.0,0.00024048,2]
[385861075,1758065446348,-2500.0,0.00024048,2]
[385861076,1758065446358,-1425.0,0.00024073,2]
[385861077,1758065446367,-1425.0,0.00024082,2]
[385861078,1758065446376,-1425.0,0.00024092,2]
[385861080,1758065446385,-390.77890651,0.00024142,2]
[385861082,1758065446395,-1425.0,0.00024142,2]
[385861084,1758065446404,-250.0,0.00024149,2]
[385861086,1758065446414,-1425.0,0.00024165,2]
[385861087,1758065446423,-200.0,0.00024166,2]
[385861089,1758065446433,-1000.0,0.00024179,2]
[385861090,1758065446442,-500.0,0.00024184,7]
[385861091,1758065446452,-497.0,0.0002419,2]
[385861092,1758065446461,-916.0,0.0002419,2]
[385861093,1758065446471,-3415.0,0.0002419,2]
[385861094,1758065446481,-915.0,0.0002419,2]
[385861095,1758065446491,-500.0,0.0002419,2]
[385861096,1758065446500,-1425.0,0.00024193,2]
[385861097,1758065446510,-1425.0,0.00024194,2]
[385861098,1758065446520,-414.50464602,0.0002421,2]
[385861099,1758065446529,-3631.11405305,0.0002421,2]
[385861100,1758065446539,-1000.0,0.0002422,2]
[385861101,1758065446549,-400.0,0.00024247,2]
[385861102,1758065446558,-4500.0,0.00024256,2]
[385861103,1758065446568,-1425.0,0.0002427,2]
[385861104,1758065446577,-878.19589209,0.0002428,2]
[385861105,1758065446587,-155.34111498,0.00024282,2]
[385861106,1758065446596,-613.32607376,0.00024282,2]
[385861107,1758065446605,-48775.6903897,0.00024288,2]
[385861108,1758065446615,-11592.0554817,0.00024288,2]
[385861109,1758065446625,-1425.0,0.00024294,2]
[385861110,1758065446636,-600.0,0.00024302,2]
[385861111,1758065446648,-1425.0,0.00024305,2]
[385861112,1758065446663,-1425.0,0.00024338,2]
[385861113,1758065446672,-151.0,0.0002437,2]
[385861114,1758065446682,-322.6107,0.0002437,2]
[385861115,1758065446692,-250.0,0.0002437,2]
[385861116,1758065446702,-248.71531821,0.0002437,2]
[385861117,1758065446712,-250.0,0.0002437,2]
[385861118,1758065446721,-151.0,0.0002437,2]
[385861119,1758065446731,-646.65982734,0.0002437,2]
[385861120,1758065446741,-250.0,0.0002437,2]
[385861121,1758065446750,-250.0,0.0002437,2]
[385861122,1758065446759,-250.0,0.0002437,2]
[385861123,1758065446769,-1000.0,0.0002437,2]
[385861124,1758065446778,-250.0,0.0002437,2]
[385861125,1758065446788,-151.0,0.0002437,2]
[385861126,1758065446797,-1000.0,0.0002437,2]
[385861127,1758065446806,-1000.0,0.0002437,2]
[385861128,1758065446815,-250.0,0.0002437,2]
[385861129,1758065446826,-1000.0,0.0002437,2]
[385861130,1758065446838,-1000.0,0.0002437,2]
[385861131,1758065446849,-250.0,0.0002437,2]
[385861132,1758065446859,-1000.0,0.0002437,2]
[385861133,1758065446869,-1000.0,0.0002437,2]
[385861134,1758065447020,-250.0,0.0002437,2]
[385861135,1758065447033,-1000.0,0.0002437,2]
[385861136,1758065447043,-1000.0,0.0002437,2]
[385861137,1758065447054,-500.0,0.0002437,2]
[385861138,1758065447064,-1000.0,0.0002437,2]
[385861139,1758065447073,-1000.0,0.0002437,2]
[385861140,1758065447083,-500.0,0.0002437,2]
[385861141,1758065447093,-1000.0,0.0002437,2]
[385861142,1758065447103,-1000.0,0.0002437,2]
[385861143,1758065447112,-500.0,0.0002437,2]
[385861144,1758065447122,-1000.0,0.0002437,2]